Cogmind - Beta 13 @@@ ROGUE MODE // 2024.04.16 @ 19:16:08 Player: Fazzonamite Result: Self-destructed Performance ------------- Evolutions (2) 1000 Regions Visited (5) 1000 Robots Destroyed (38) 190 Value Destroyed (1304) 1304 Prototype IDs (1) 20 Alien Tech Used (0) 0 Bonus (0) 0 TOTAL SCORE: 3514 Bonus ------- None Cogmind --------- Core Integrity 134/550 Matter 107/300 Energy 125/125 System Corruption 1% Temperature Warm (181) Movement Core (250) Ox4 Location -8/Storage Parts ------- > --- POWER (1) -------- Light Ion Engine > --- PROPULSION (3) --- (None) > --- UTILITY (5) ------ Medium Storage Unit Improved Targeting Computer > --- WEAPON (2) ------- (None) > --- INVENTORY (10) --- VTOL Module Compact Matter Pod (0) ECM Suite Peak State ------------ > --- POWER ------------ (None) > --- PROPULSION ------- Cooled Aerolev Unit > --- UTILITY ---------- Improved Heat Sink Medium Storage Unit Machine Analyzer Improved Targeting Computer Improved Power Shielding > --- WEAPON ----------- Light Assault Rifle Flak Cannon > --- INVENTORY -------- Light Ion Engine Light Ion Engine VTOL Module Compact Matter Pod ECM Suite Light Cannon Grenade Launcher [Rating: 23] Favorites ----------- Power Ion Engine Engine Ion Engine Propulsion Light Treads Treads Light Treads Hover Unit Cooled Aerolev Unit Utility Medium Storage Unit Device Improved Heat Sink Storage Medium Storage Unit Processor Targeting Computer Protection Propulsion Shielding Weapon Grenade Launcher Ballistic Gun Light Assault Rifle Ballistic Cannon Light Cannon Launcher Grenade Launcher Impact Weapon Hammer Build | -11 -10 -10 -9 -8 -8 ------- Run | Yrd Mat Min Mat Mat Sto Slots Evolved 4 | . . . 2 2 . Power . | . . . . . . Propulsion 1 | . . . . 1 . Utility 3 | . . . 2 1 . Weapon . | . . . . . . Parts Attached 44 | 6 5 9 4 8 12 Power 4 | 1 . 1 . . 2 Engine 4 | 1 . 1 . . 2 Core . | . . . . . . Reactor . | . . . . . . Propulsion 5 | 2 . . . . 3 Treads 4 | 2 . . . . 2 Leg . | . . . . . . Wheel . | . . . . . . Hover 1 | . . . . . 1 Flight . | . . . . . . Utility 9 | 1 2 . 2 1 3 Device 1 | . . . . . 1 Storage 2 | 1 1 . . . . Processor 3 | . 1 . 1 1 . Hackware . | . . . . . . Protection 3 | . . . 1 . 2 Artifact . | . . . . . . Weapon 26 | 2 3 8 2 7 4 Energy Gun . | . . . . . . Energy Cannon . | . . . . . . Ballistic Gun 11 | 2 1 4 . 3 1 Ballistic Cannon 5 | . . . . 3 2 Launcher 9 | . 2 3 2 1 1 Special Weapon . | . . . . . . Impact Weapon 1 | . . 1 . . . Slashing Weapon . | . . . . . . Piercing Weapon . | . . . . . . Special Melee Weapon . | . . . . . . Unidentified Prototypes 1 | . . . . . 1 Parts Lost 18 | . . 1 . 4 13 Power 3 | . . 1 . 1 1 Propulsion 5 | . . . . 2 3 Utility 5 | . . . . 1 4 Weapon 5 | . . . . . 5 Highest Loss Streak 11 | . . 1 . 4 11 To Critical Strikes . | . . . . . . Average Slot Usage (%) 88 | . 99 98 94 79 65 Engine 10 | . 14 13 11 6 4 Treads 19 | . 28 28 22 13 4 Hover 1 | . . . . . 6 Storage 11 | . 14 14 11 9 9 Processor 18 | . 13 14 17 27 19 Protection 4 | . . . 11 6 7 Ballistic Gun 9 | . 22 5 5 7 6 Ballistic Cannon 2 | . . . . 7 4 Launcher 9 | . 5 21 16 1 . Naked Turns . | . . . . . . Heaviest Build 27 | 12 21 21 22 22 27 Greatest Support 40 | 40 40 40 40 40 40 Greatest Overweight (x) 3 | 1 . . . 3 3 Average Overweight (x) . | . . . . . 1 Largest Inventory Capacity 10 | 8 10 10 10 10 10 Average Capacity 9 | 7 9 10 10 10 10 Most Carried 10 | 5 10 10 10 9 9 Average Carried 8 | 1 7 9 8 8 7 Final Capacity 10 | 8 10 10 10 10 10 Final Carried 10 | 2 10 9 9 9 3 Class Distribution -------------------- 97% | Mutant Dominant Class ---------------- Mutant | -10/Materials Mutant | -10/Mines Mutant | -9/Materials Mutant | -8/Materials Mutant | -8/Storage Resources | -11 -10 -10 -9 -8 -8 ----------- Run | Yrd Mat Min Mat Mat Sto Matter Collected 1016 | 250 34 143 115 277 197 Remotely . | . . . . . . Salvage Created 986 | . 78 155 179 289 285 Parts 69 | . 12 17 8 16 16 Haulers Intercepted . | . . . . . . Recyclers Shooed 1 | . . . . 1 . Parts Field Recycled . | . . . . . . Retrieved Matter . | . . . . . . Parts Self-Destructed . | . . . . . . Prevented . | . . . . . . Kills | -11 -10 -10 -9 -8 -8 ------- Run | Yrd Mat Min Mat Mat Sto Combat Hostiles Destroyed 32 | . 3 7 7 7 8 Guns 6 | . . 2 . 3 1 Cannons 7 | . . . . 2 5 AOE 19 | . 3 5 7 2 2 Classes Destroyed 9 | . 3 2 . 4 . Worker 1 | . 1 . . . . Builder 1 | . . . . 1 . Tunneler 2 | . . 2 . . . Operator 1 | . . . . 1 . Watcher 1 | . 1 . . . . Swarmer 5 | . 3 2 . . . Grunt 22 | . . 5 7 4 6 Sentry 4 | . . . . 2 2 Hunter 1 | . . . . 1 . Best Kill Streak 5 | . 3 5 5 3 4 Combat Bots Only 5 | . 3 3 5 3 4 Max Kills in Single Turn 4 | . 3 3 4 1 1 Gunslinging . | . . . . . . Exploded 4 | . 3 2 4 1 1 Melee . | . . . . . . Uniques/NPCs Destroyed . | . . . . . . Combat | -11 -10 -10 -9 -8 -8 -------- Run | Yrd Mat Min Mat Mat Sto Hostile Shots Fired 233 | . 10 28 8 59 128 Missed 61 | . 3 7 2 19 30 Damage Taken 2561 | . 57 233 75 601 1595 Core 466 | . 17 33 . 142 274 Absorbed by Shields . | . . . . . . Redirected to Shielding 159 | . . . 15 37 107 Core Remaining (%) 93 | 100 . 80 100 . . Volleys Fired 88 | . 10 16 3 37 22 Largest 2 | . 2 2 2 2 2 Hottest 70 | . 60 60 60 70 67 Shots Fired 164 | . 20 32 6 72 34 Gun 96 | . 18 22 . 43 13 Cannon 40 | . . . . 20 20 Launcher 28 | . 2 10 6 9 1 Special . | . . . . . . Kinetic 136 | . 18 22 . 63 33 Thermal . | . . . . . . Explosive 28 | . 2 10 6 9 1 Electromagnetic . | . . . . . . Robot Hit Streak 16 | . 3 15 2 14 16 Robot Miss Streak 4 | . 3 2 1 3 4 Penetration Max . | . . . . . . Secondary Targets 1 | . . . . 1 . Max Gunslinging Chain 1 | . . . . 1 . Shots Hit Robots 114 | . 8 20 2 54 30 Core Hits 92 | . 9 16 9 25 33 Critical Kills . | . . . . . . Critical Parts Destroyed 2 | . . 1 . . 1 Critical Strikes 4 | . . 1 . 2 1 Destroy 2 | . . 1 . . 1 Blast 2 | . . . . 2 . Melee Attacks 1 | . . 1 . . . Impact 1 | . . 1 . . . Slashing . | . . . . . . Piercing . | . . . . . . Sneak Attacks . | . . . . . . Combat Hostiles . | . . . . . . Follow-up Attacks . | . . . . . . Damage Inflicted 3265 | . 231 595 672 741 1026 Guns 733 | . 94 155 . 340 144 Cannons 574 | . . . . 236 338 Explosions 1958 | . 137 440 672 165 544 Melee . | . . . . . . Ramming . | . . . . . . Kinetic 1307 | . 94 155 . 576 482 Thermal . | . . . . . . Explosive 1931 | . 110 440 672 165 544 Electromagnetic 27 | . 27 . . . . Impact . | . . . . . . Slashing . | . . . . . . Piercing . | . . . . . . Highest Corruption 1 | . . . . . 1 Average Corruption 1 | . . . . . 1 Corruption Purged . | . . . . . . Corruption Blocked . | . . . . . . Effects 2 | . . . . . 2 Matter Fused 1 | . . . . . 1 Energy Discharges 1 | . . . . . 1 Overload Shots . | . . . . . . Overflow Damage 59 | . . 19 10 . 30 Projectiles . | . . . . . . Explosions 59 | . . 19 10 . 30 Melee . | . . . . . . Knockbacks 10 | . . . . 3 7 Impact . | . . . . . . Kinetic 9 | . . . . 2 7 Secondary 1 | . . . . 1 . Self-Inflicted Damage 83 | . . . . . 83 Shots 2 | . . . . . 2 Rammed 1 | . . . . . 1 Targets Rammed 1 | . . . . . 1 Kicked . | . . . . . . Crushed . | . . . . . . Highest Temperature 181 | . . 12 18 8 181 Average Temperature 23 | . . 5 12 3 39 Received Heat Transfer 1257 | . . 126 42 234 855 Siege Activations . | . . . . . . Robots Corrupted . | . . . . . . Combat Hostiles . | . . . . . . Parts Fried . | . . . . . . Impact Corruptions . | . . . . . . Robots Melted . | . . . . . . Combat Hostiles . | . . . . . . Parts Melted . | . . . . . . Heat Transferred . | . . . . . . Parts Sabotaged . | . . . . . . Parts Stolen . | . . . . . . Parts Stripped . | . . . . . . Power Chain Reactions . | . . . . . . Alert | -11 -10 -10 -9 -8 -8 ------- Run | Yrd Mat Min Mat Mat Sto Peak Influence 388 | . 135 247 233 305 388 Initial 128 | . . 52 22 98 128 Average 128 | . 32 116 156 183 201 Maximum Alert Level 1 | . . 1 1 1 1 Low Security (%) 78 | 100 100 97 49 73 45 Level 1 21 | . . 2 50 26 54 Level 2 . | . . . . . . Level 3 . | . . . . . . Level 4 . | . . . . . . Level 5 . | . . . . . . High Security . | . . . . . . Max Security . | . . . . . . Squads Dispatched 7 | . . . . 3 4 Investigation 1 | . . . . . 1 Extermination . | . . . . . . Reinforcement 1 | . . . . . 1 Assault . | . . . . . . Garrison 5 | . . . . 3 2 Intercept . | . . . . . . Searches Triggered . | . . . . . . Construction Impeded . | . . . . . . Haulers Reinforced . | . . . . . . Active Scanning Responses . | . . . . . . Cargo Convoy Interrupts . | . . . . . . Stealth | -11 -10 -10 -9 -8 -8 --------- Run | Yrd Mat Min Mat Mat Sto Distress Signals 2 | . . . . 2 . Communications Jammed . | . . . . . . Distress Signals . | . . . . . . Times Spotted 53 | . 8 8 8 11 18 Peak Tracking Total 11 | . 3 3 5 5 11 Tactical Retreats . | . . . . . . Traps | -11 -10 -10 -9 -8 -8 ------- Run | Yrd Mat Min Mat Mat Sto Traps Triggered 2 | . 1 . . . 1 Indirectly 1 | . 1 . . . . Trap Hack Attempts . | . . . . . . Triggered . | . . . . . . Disarmed . | . . . . . . Reprogrammed . | . . . . . . Reused . | . . . . . . Traps Extracted . | . . . . . . Installed . | . . . . . . Triggered . | . . . . . . Machines | -11 -10 -10 -9 -8 -8 ---------- Run | Yrd Mat Min Mat Mat Sto Machines Disabled 6 | . 2 . . 1 3 Max in Single Turn 2 | . 2 . . 1 2 Machines Repaired . | . . . . . . Machines Dismantled . | . . . . . . Machines Sabotaged . | . . . . . . Overloaded Fab Kills . | . . . . . . Hacking | -11 -10 -10 -9 -8 -8 --------- Run | Yrd Mat Min Mat Mat Sto Machines Accessed 5 | . 2 . . . 3 Terminals 4 | . 1 . . . 3 Fabricators . | . . . . . . Repair Stations . | . . . . . . Recycling Units 1 | . 1 . . . . Scanalyzers . | . . . . . . Garrison Access . | . . . . . . Total Hacks 11 | . 2 . . . 9 Successful 3 | . 1 . . . 2 Failed 8 | . 1 . . . 7 Catastrophic . | . . . . . . Database Lockouts . | . . . . . . Manual . | . . . . . . Terminals 10 | . 1 . . . 9 Fabricators . | . . . . . . Repair Stations . | . . . . . . Recycling Units 1 | . 1 . . . . Scanalyzers . | . . . . . . Garrison Access . | . . . . . . Terminal Hacks 2 | . . . . . 2 Record 1 | . . . . . 1 Open Door 1 | . . . . . 1 Fabricator Hacks . | . . . . . . Repair Station Hacks . | . . . . . . Recycling Unit Hacks 1 | . 1 . . . . Report Inventory 1 | . 1 . . . . Scanalyzer . | . . . . . . Garrison Access Hacks . | . . . . . . Unauthorized Hacks . | . . . . . . Terminals . | . . . . . . Fabricators . | . . . . . . Repair Stations . | . . . . . . Recycling Units . | . . . . . . Scanalyzers . | . . . . . . Garrison Access . | . . . . . . Data Cores Recovered 1 | . . . . 1 . Used . | . . . . . . Hacking Detections 4 | . 1 . . . 3 Full Trace Events 1 | . . . . . 1 Feedback Events . | . . . . . . Feedback Blocked . | . . . . . . Robot Schematics Acquired . | . . . . . . Robots Built . | . . . . . . Authchips . | . . . . . . Time . | . . . . . . Total Robot Build Rating . | . . . . . . Part Schematics Acquired . | . . . . . . Parts Built . | . . . . . . Authchips . | . . . . . . Time . | . . . . . . Total Part Build Rating . | . . . . . . Parts Repaired . | . . . . . . Time . | . . . . . . Parts Recycled . | . . . . . . Recycled Matter . | . . . . . . Retrieved Matter . | . . . . . . Retrieved Components . | . . . . . . Parts Scanalyzed . | . . . . . . Part Schematics Acquired . | . . . . . . Parts Damaged . | . . . . . . Bothacking | -11 -10 -10 -9 -8 -8 ------------ Run | Yrd Mat Min Mat Mat Sto Used RIF Installer . | . . . . . . Robots Hacked . | . . . . . . Non-combat . | . . . . . . Combat . | . . . . . . Robot Hacks Applied . | . . . . . . Relay Couplers Released . | . . . . . . Fabnet Peak Effective % . | . . . . . . Robots Rewired . | . . . . . . Allies Hacked . | . . . . . . Hacks Repelled . | . . . . . . Allies | -11 -10 -10 -9 -8 -8 -------- Run | Yrd Mat Min Mat Mat Sto Total Allies . | . . . . . . Largest Group . | . . . . . . Highest-Rated Group . | . . . . . . Highest-Rated Ally . | . . . . . . Total Orders . | . . . . . . Ally Attacks . | . . . . . . Total Damage . | . . . . . . Kills . | . . . . . . Allies Corrupted . | . . . . . . Allies Melted . | . . . . . . Intel | -11 -10 -10 -9 -8 -8 ------- Run | Yrd Mat Min Mat Mat Sto Robot Analysis Total . | . . . . . . Derelict Logs Recovered 1 | . . 1 . . . Drone Launches . | . . . . . . Drone Recoveries . | . . . . . . Exploration | -11 -10 -10 -9 -8 -8 ------------- Run | Yrd Mat Min Mat Mat Sto Turns Passed 1767 | 70 361 446 195 386 309 Spaces Moved 852 | 39 197 203 110 157 146 Core 81 | 6 . . . 30 45 Treads 698 | 33 197 203 110 127 28 Legs . | . . . . . . Wheels . | . . . . . . Hover 73 | . . . . . 73 Flight . | . . . . . . Fastest Speed 50 | 50 160 160 160 160 100 Average Speed 160 | 145 160 160 160 168 159 Slowest Speed 240 | 160 160 160 160 240 200 Overloaded Moves . | . . . . . . Propulsion Burnouts . | . . . . . . Robots Hopped . | . . . . . . Cave-ins Triggered . | . . . . . . Exploration Rate (%) 28 | 4 46 48 17 17 37 Regions Visited 5 Branch Regions 2 Pre-discovered Areas 1 | . . 1 . . . Known Exits Taken 1 | . . . . 1 . Unknown Exits Taken 4 | 1 1 1 1 . . Scrap Searched . | . . . . . . Spaces Dug . | . . . . . . Terrain Destroyed 170 | . 11 65 46 31 17 Melee . | . . . . . . Projectile . | . . . . . . AOE 170 | . 11 65 46 31 17 Terrain Rammed . | . . . . . . Walls Destroyed . | . . . . . . Machines Disabled . | . . . . . . Actions | -11 -10 -10 -9 -8 -8 --------- Run | Yrd Mat Min Mat Mat Sto Total 1088 | 52 224 291 123 210 188 Wait 64 | . . 61 . 3 . Move 847 | 38 196 202 109 156 146 Hop . | . . . . . . Pick Up 33 | 8 11 1 4 3 6 Fast Attach 1 | . . . 1 . . Attach 24 | 6 1 2 1 2 12 Detach . | . . . . . . Swap 19 | . 4 7 2 6 . Drop 10 | . 2 1 3 3 1 Fire 88 | . 10 16 3 37 22 Melee 1 | . . 1 . . . Ram 1 | . . . . . 1 Kick . | . . . . . . Crush . | . . . . . . Escape Stasis . | . . . . . . Rewire . | . . . . . . Trap . | . . . . . . Miscellaneous . | . . . . . . Route ------- -11/Scrapyard -10/Materials -10/Mines -9/Materials -8/Materials -8/Storage History --------- Turn | Location | Event 7 | -11/Scrapyard | Discovered new exit (range 15) 71 | -11/Scrapyard | Entered Materials 301 | -10/Materials | Build established: Mutant 418 | -10/Materials | Discovered new exit (range 7) 432 | -10/Materials | Entered Mines 465 | -10/Mines | Met a Derelict bent on vengeance 542 | -10/Mines | Excavation squad dispatched 542 | -10/Mines | A large section of the Mines collapsed 792 | -10/Mines | Excavation squad dispatched 864 | -10/Mines | Learned location of Storage (-8) 865 | -10/Mines | Discovered new exit (range 7) 878 | -10/Mines | Entered Materials 878 | -9/Materials | Evolved 2 slots: Utility x2 1021 | -9/Materials | Discovered new exit (range 3) 1073 | -9/Materials | Entered another Materials area 1073 | -8/Materials | Evolved 2 slots: Propulsion x1, Utility x1 1074 | -8/Materials | Identified exit to Storage 1216 | -8/Materials | Garrison activated, responded to threat 1400 | -8/Materials | Lost 4 parts (1p2n1u) 1459 | -8/Materials | Entered Storage 1578 | -8/Storage | Garrison activated, responded to threat 1699 | -8/Storage | Core integrity fell below 50% 1768 | -8/Storage | Self-destructed Last Messages --------------- Lgt. Treads destroyed. Grenade Launcher destroyed. Critical hit (Burn: +37). U-05 Engineer builds a Wall. G-47 Trooper destroyed. U-05 Engineer lays Concrete. The unstable cave ceiling collapses. Lgt. Armor Plating destroyed. Critical hit (Burn: +37). U-05 Engineer lays Concrete. G-50 Soldier destroyed. Hvy. Assault Rifle destroyed. U-05 Engineer lays Concrete. Critical hit (Burn: +37). Cld. Aerolev Unit destroyed. U-05 Engineer builds a Wall. G-47 Trooper knocked back. Lgt. Treads destroyed. Lgt. Cannon destroyed. Imp. Power Shielding destroyed. Map ----- +----------------------------------------------------+ | | | | | | | | | | | | | | | | | | | | | | | | | | | | | | | | | ?????????????????????????????????????????????????? | | ?????????????????????????????????????????????????? | | ""???????????????????????????????????????????????? | | R????????????????????????????????????????????????? | | ""???????????????????????????????????????????????? | | ?????????????????????????????????????????????????? | | ????????????????????????##########???????????????? | | ???????????????????????##g ##??????????????? | | ????????????????????""## "" "" #??????????????? | | ????????????????????T"# @ g " ####????????????? | | ????????????????????""# = "" """?????????????? | | ?????????????????????# g%%[Y G"#????????????? | | ?????????????????????# % ! """?????????????? | | ?????????????????????# = ! ###?????????????? | | ?????????????????????# # Y g #???????????????? | | ?????????????????????## um #???????????????? | | ??????????????????####### ##/####???????????????? | | ??????????????????# # +?????????????????? | | ??????????????????# T """ # #?????????????????? | | ??????????????????# """ + #?????????????????? | | ??????????????????# """ # #?????????????????? | | ??????????????????# # +?????????????????? | | ??????????????????# """ # #?????????????????? | | ??????????????????# """ # #?????????????????? | | ??????????????????# """ # #?????????????????? | | ??????????????????# # ####??????????????? | | ???????#####+######+##+##### ## ########???????? | | ?????### # ^^ #???????? | | ?? % # """ "" #???????? | | ?? % # """ "" #???????? | | ?? ########/######## # """ T" #???????? | | ???? ????????????# #?????# /^ "" #???????? | | ??????????????????# #?????# # !! "" #???????? | | ??????????????????" #?????# # !! ######### | +----------------------------------------------------+ Best States ------------- Heat Dissipation 45 Energy Generation 10 Energy Capacity 250 Matter Stores 290 Matter Capacity 300 Sight Range 16 Terrain Scan Density 10 Armor Coverage 150 Power Shielding 66 Propulsion Shielding 33 Evasion (%) 40 Targeting Accuracy 11 Recoil Reduction 2 Item Schematics ----------------- None Robot Schematics ------------------ None Fabricated ------------ Nothing Alien Tech Used ----------------- None Achievements -------------- None Challenges ------------ None Game ------ Seed MagneticProcessingLattice Manual? 0 Play Time 00:30:35 Cumulative 11.0 hours Start 2024.04.16 @ 18:41:32 End 2024.04.16 @ 19:16:08 Sessions 1 Manual Loads 0 Difficulty Rogue Special Mode None Game No. 17 Rogue 17 Adventurer 0 Explorer 0 Win Type - Total 0 Types 0/0/0/0/0/0/0/0/0 Lore% 6 Gallery% 13 Achievement% 12 Wizard Run 0 Options --------- Layout 1 ASCII 0 Keyboard 0 Movement Mouse Keybinds 0 Fullscreen 1 Font 48/Smallcaps Map View 50x35 Zoom Use 0% Tactical HUD 0 Map Filters NONE Filters NONE Steam 1 RUN: 6c34a230-586d-4423-9b89-f3dcb82d77a3